Cogmind - Beta 16 @@@ ROGUE MODE // 2025.11.29 @ 23:15:17 Player: Anonymous Bosch Result: Destroyed by X-77 Beamer with Gatling Laser Performance ------------- Evolutions (5) 2500 Regions Visited (15) 3000 Robots Destroyed (238) 1190 Value Destroyed (7609) 7609 Prototype IDs (22) 440 Alien Tech Used (0) 0 Bonus (1142) 1142 TOTAL SCORE: 15881 Bonus ------- High Alert Combat Kills 39 Follower Combat Kills 1254 Met R17 at Cetus 500 Friendly Fire -651 Cogmind --------- Core Integrity 0/1000 Matter 295/300 Energy 31/100 System Corruption 9% Temperature Cool (12) Movement Core (50) Location -5/Factory Parts ------- > --- POWER (2) -------- (None) > --- PROPULSION (4) --- (None) > --- UTILITY (8) ------ (None) > --- WEAPON (3) ------- (None) > --- INVENTORY (5) ---- Improved Surge Thruster Advanced Heat Sink Large Storage Unit Advanced Datajack Great Axe Peak State ------------ > --- POWER ------------ Neutrino Core Neutrino-Fission Core > --- PROPULSION ------- FC Exoskeleton > --- UTILITY ---------- Armored Scrap Engine Advanced Heat Sink High-capacity Storage Unit Advanced Sensor Array Transmission Jammer Improved Medium Armor Plating Improved Hacking Suite > --- WEAPON ----------- Advanced Variable Charge Gun Directed Wave Construct/G Thermal Construct/G > --- INVENTORY -------- Cooled Cesium-ion Thruster Advanced Heat Sink Advanced Heat Sink Advanced Heat Sink Advanced Heat Sink Large Storage Unit High-capacity Battery Advanced Terrain Scan Processor Recoil Stabilizer Weapon Cycler Improved Shock Absorption System Improved System Shield Thief Drone Bay Wave Gun Variable Charge Gun Improved Proton Missile Launcher Guided EMP Blaster Advanced Datajack Great Axe [Rating: 109] Favorites ----------- Power Constructs Engine Light Ion Engine Power Core Constructs Reactor Heavy Antimatter Reactor Propulsion Constructs Treads Light Treads Leg Constructs Wheel Compact Wheel Hover Unit Cooled Gravmag System Flight Unit Nuclear Pulse Array Utility Armored Scrap Engine Device Armored Scrap Engine Storage High-capacity Storage Unit Processor Improved Signal Interpreter Hackware Hacking Suite Protection Medium Armor Plating Weapon Constructs Energy Gun Constructs Energy Cannon Phase Cannon Ballistic Gun Improved Assault Rifle Launcher Rocket Launcher Special Weapon Remote Datajack Impact Weapon Flail Slashing Weapon Great Axe Special Melee Weapon Datajack Build | -11 -10 -10 -9 -9 -9 -7 -7 -7 -7 -6 -6 -6 -6 -6 -5 ------- Run | Yrd Mat Min Mat Sto Rec Fac Low Low Zio Pro Fac Ext Cet Arc Fac Slots Evolved 10 | . . . 2 . . 4 . . . . 2 . . . 2 Power 1 | . . . . . . . . . . . 1 . . . . Propulsion 2 | . . . 2 . . . . . . . . . . . . Utility 6 | . . . . . . 3 . . . . 1 . . . 2 Weapon 1 | . . . . . . 1 . . . . . . . . . Parts Attached 135 | 7 17 4 20 6 15 12 1 3 . . 5 7 11 8 19 Power 11 | 1 1 . 2 1 2 . . . . . . . . 1 3 Engine 7 | 1 1 . 2 1 1 . . . . . . . . . 1 Core 3 | . . . . . . . . . . . . . . 1 2 Reactor 1 | . . . . . 1 . . . . . . . . . . Propulsion 37 | 2 6 2 11 2 5 2 . 1 . . . . . . 6 Treads 12 | . 2 . 7 1 2 . . . . . . . . . . Leg 4 | . 2 . . . . 1 . 1 . . . . . . . Wheel 13 | 2 2 2 3 1 3 . . . . . . . . . . Hover 1 | . . . . . . 1 . . . . . . . . . Flight 7 | . . . 1 . . . . . . . . . . . 6 Utility 48 | 2 5 2 1 . 2 9 . . . . 4 4 7 6 6 Device 31 | 1 2 2 . . 1 5 . . . . 1 3 6 5 5 Storage 7 | 1 3 . . . . 2 . . . . . . 1 . . Processor 3 | . . . . . . . . . . . 2 1 . . . Hackware 4 | . . . . . . 2 . . . . 1 . . 1 . Protection 3 | . . . 1 . 1 . . . . . . . . . 1 Artifact . | . . . . . . . . . . . . . . . . Weapon 39 | 2 5 . 6 3 6 1 1 2 . . 1 3 4 1 4 Energy Gun 15 | 1 5 . 2 . 1 1 . . . . . . 1 1 3 Energy Cannon 3 | . . . . . . . . . . . . 1 1 . 1 Ballistic Gun 12 | 1 . . 2 2 5 . . . . . 1 . 1 . . Ballistic Cannon . | . . . . . . . . . . . . . . . . Launcher 3 | . . . . . . . 1 . . . . 1 1 . . Special Weapon 1 | . . . . . . . . 1 . . . . . . . Impact Weapon 1 | . . . 1 . . . . . . . . . . . . Slashing Weapon 2 | . . . 1 . . . . 1 . . . . . . . Piercing Weapon . | . . . . . . . . . . . . . . . . Special Melee Weapon 2 | . . . . 1 . . . . . . . 1 . . . Unidentified Prototypes 14 | . . 1 3 1 3 2 . . . . . 1 2 . 1 Parts Lost 49 | . 7 . 3 . 7 2 1 . 1 . 1 6 3 . 18 Power 8 | . 1 . . . 1 . . . . . . . 2 . 4 Propulsion 15 | . 3 . 2 . 4 . 1 . 1 . . . . . 4 Utility 14 | . 1 . 1 . 1 1 . . . . 1 3 . . 6 Weapon 12 | . 2 . . . 1 1 . . . . . 3 1 . 4 Highest Loss Streak 9 | . 4 . 2 . 7 1 1 . 1 . 1 2 3 . 9 To Critical Strikes . | . . . . . . . . . . . . . . . . Average Backups 17 | 4 16 20 24 24 9 14 17 18 18 17 19 17 15 18 15 Power . | 1 1 1 1 1 . . . . . . . . . . . Propulsion 2 | 2 6 5 6 6 1 . . . . . . . . . . Utility 9 | . 4 7 6 6 3 9 13 15 15 14 14 11 9 11 9 Weapon 4 | 1 2 3 8 9 3 3 2 2 2 2 3 3 3 5 4 Tool/Special . | . . . . . . . . . . . . . . . . Unused Backups 53 | . 4 4 7 2 9 5 1 . 1 1 3 1 3 2 10 Power 4 | . . 1 1 . 2 . . . . . . . . . . Propulsion 9 | . 1 2 1 2 1 . 1 . . . . . . . 1 Utility 25 | . 1 . 2 . 3 5 . . 1 1 2 1 2 . 7 Weapon 12 | . 1 1 2 . 3 . . . . . 1 . 1 2 1 Tool/Special 3 | . 1 . 1 . . . . . . . . . . . 1 Average Slot Usage (%) 78 | . 98 100 98 100 78 73 69 68 74 69 65 60 64 70 60 Engine 6 | . 14 14 11 11 2 4 7 7 7 7 5 . . 2 . Core 1 | . . . . . . 2 . . . . 1 6 1 8 7 Reactor 1 | . . . . . 8 . . . . . . . 3 . . Treads 6 | . 3 17 15 22 15 . . . . . 3 1 1 6 2 Leg 2 | . 4 . . . . 3 7 10 13 7 2 . 3 . 1 Wheel 8 | . 19 10 28 22 11 1 . . . . . . . . . Hover 1 | . . . . . 4 8 3 . . . . 2 . . . Device 16 | . 13 14 10 2 8 19 21 23 23 23 20 15 25 24 21 Storage 7 | . 14 14 11 11 2 6 7 7 7 7 6 6 6 6 3 Hackware 1 | . . . . . . 3 . . . . 2 5 . 1 3 Energy Gun 9 | . 18 28 6 . 9 10 15 2 . . 3 4 3 9 9 Ballistic Gun 6 | . 8 . 14 20 11 . . . . . 1 5 10 9 . Ballistic Cannon 2 | . . . . . . 3 . 9 15 15 8 1 . . . Slashing Weapon 1 | . . . . 1 . 2 . 4 7 7 4 . . . 2 Peak Build Rating 109 | 7 11 17 22 21 43 72 66 59 59 61 81 86 98 99 109 Average Rating 48 | 5 8 11 18 20 36 60 60 55 58 60 71 79 89 97 86 On Entrance 47 | . 7 11 12 20 21 43 66 59 58 58 61 81 73 98 99 Avg Prop Armor Cover (%) 11 | . . . 17 14 15 2 2 . . . . . . . 14 Naked Turns 51 | . . . . . . . . . . . . . . . 51 Heaviest Build 101 | 13 50 90 95 101 101 61 62 64 64 64 80 83 79 90 90 Greatest Support 139 | 20 40 40 52 32 40 85 74 84 84 98 98 139 135 135 135 Greatest Overweight (x) 4 | . 4 4 4 3 3 3 . . . . . 1 . . 4 Average Overweight (x) . | . 1 2 1 2 . . . . . . . . . . . Largest Inventory Capacity 25 | 8 25 25 25 25 25 20 20 20 20 20 20 20 20 20 20 Average Capacity 18 | 7 18 21 25 25 9 15 20 20 20 20 20 20 16 20 17 Most Carried 25 | 8 21 22 25 25 25 18 19 20 20 20 20 20 20 20 20 Average Carried 17 | 4 16 20 24 24 9 14 17 19 19 19 19 18 15 19 16 Final Capacity 25 | 8 20 25 25 25 5 20 20 20 20 20 20 20 20 20 5 Final Carried 25 | 8 20 22 25 25 5 18 19 19 20 20 20 20 20 19 5 Scrap Engine Consumption 257 | . . . . . 48 58 6 8 1 1 47 38 27 4 19 Constructs Created 10 | . . . . . 3 2 . 1 . . . 1 1 . 2 Constructs Modified 84 | . . . . . 8 28 1 1 . 2 11 17 13 2 1 Class Distribution -------------------- 43% | Construct 18% | Mutant 13% | Commander-Construct 13% | Scavenger-Mutant 6% | Commander-Mutant 4% | Scavenger-Construct Dominant Class ---------------- Mutant | -10/Materials Mutant | -10/Mines Scavenger-Mutant | -9/Materials Commander-Mutant | -9/Storage Commander-Construct | -9/Recycling Construct | -7/Factory Construct | -7/Lower Caves Commander-Construct | -7/Lower Caves Commander-Construct | -7/Zion Construct | -6/Proximity Caves Construct | -6/Factory Construct | -6/Extension Construct | -6/Cetus Scavenger-Construct | -6/Archives Scavenger-Construct | -5/Factory Resources | -11 -10 -10 -9 -9 -9 -7 -7 -7 -7 -6 -6 -6 -6 -6 -5 ----------- Run | Yrd Mat Min Mat Sto Rec Fac Low Low Zio Pro Fac Ext Cet Arc Fac Matter Collected 5213 | 294 418 64 456 454 552 344 176 275 10 . 319 667 455 361 368 Remotely . | . . . . . . . . . . . . . . . . Salvage Created 11029 | 167 980 318 1041 649 870 1575 278 405 30 . 620 1656 896 530 1014 Parts 516 | 18 52 15 63 42 35 72 9 5 2 . 35 58 32 25 53 Haulers Intercepted 19 | . 2 . 6 6 . 2 . . . . 2 . . . 1 Recyclers Shooed 20 | . 3 . 2 . 12 . . . . . . 1 . . 2 Parts Field Recycled . | . . . . . . . . . . . . . . . . Retrieved Matter . | . . . . . . . . . . . . . . . . Parts Self-Destructed 16 | . . . . . . . 13 3 . . . . . . . Prevented 1 | . . . . . . . 1 . . . . . . . . Parts Restored . | . . . . . . . . . . . . . . . . Kills | -11 -10 -10 -9 -9 -9 -7 -7 -7 -7 -6 -6 -6 -6 -6 -5 ------- Run | Yrd Mat Min Mat Sto Rec Fac Low Low Zio Pro Fac Ext Cet Arc Fac Combat Hostiles Destroyed 139 | . 16 . 15 7 6 21 11 4 . . 11 14 13 4 17 Melee 4 | . . . . . . . . . . . . . . . 4 Guns 95 | . 14 . 15 7 6 12 4 1 . . 6 7 11 4 8 Cannons 19 | . . . . . . 3 . 1 . . 5 4 2 . 4 AOE 15 | . 1 . . . . 5 7 2 . . . . . . . Classes Destroyed 21 | 2 7 . 1 . 3 3 1 1 1 . . 1 . . 1 Worker 17 | . 2 4 1 2 . 7 . . . . . . . . 1 Builder 6 | . 1 1 . . . 2 . . . . . 2 . . . Tunneler 9 | 5 2 . . . . 1 . . . . 1 . . . . Hauler 20 | . 2 . 6 6 . 3 . . . . 2 . . . 1 Recycler 19 | 1 2 3 1 . 6 . . . . . . 5 . . 1 Minesweeper 1 | . . . . . . . 1 . . . . . . . . Operator 13 | . 2 . 1 . . 2 . . . . 1 1 . 6 . Watcher 11 | . 1 . 4 1 . 1 . . . . . 2 2 . . Swarmer 28 | . 3 . 4 1 . . 7 . . . 6 2 . . 5 Cutter 3 | . . . . . . . . . . . . . . . 3 Grunt 55 | . 13 . 6 4 . 14 3 . . . 2 4 8 . 1 Brawler 1 | . . . . . . . . . . . . 1 . . . Protector 1 | . . . . . . 1 . . . . . . . . . Sentry 19 | . . . 5 2 2 2 1 . . . . 3 . 4 . Demolisher 1 | . . . . . 1 . . . . . . . . . . Hunter 9 | . . . . . . 1 . 2 . . . 4 . . 2 Programmer 14 | . . . . . . 4 . 1 . . 3 . . . 6 Cetus Guard 5 | . . . . . . . . . . . . . 5 . . Scientist 1 | . . . . . 1 . . . . . . . . . . Scrapper 2 | . . . . . 2 . . . . . . . . . . Tinkerer 1 | . . . . . . . . . 1 . . . . . . Thug 2 | . . . . . . 1 . . . . . 1 . . . Mutant 1 | . . . . . . . . 1 . . . . . . . Best Kill Streak 8 | 3 4 3 5 3 2 6 4 3 1 . 4 4 8 2 4 Combat Bots Only 8 | . 4 . 4 2 2 3 4 3 . . 4 4 8 1 3 Max Kills in Single Turn 8 | 1 1 1 1 1 1 8 2 1 1 . 1 2 1 1 1 Gunslinging . | . . . . . . . . . . . . . . . . Exploded 3 | . 1 . . . . 3 2 1 . . . . . . . Melee 1 | . . . . . . . . . . . . . . . 1 Uniques/NPCs Destroyed 1 | . . . . . 1 . . . . . . . . . . 01-MTF (-9/Recycling) Combat | -11 -10 -10 -9 -9 -9 -7 -7 -7 -7 -6 -6 -6 -6 -6 -5 -------- Run | Yrd Mat Min Mat Sto Rec Fac Low Low Zio Pro Fac Ext Cet Arc Fac Hostile Shots Fired 1238 | . 66 . 76 25 121 81 61 33 19 . 54 149 122 37 394 Missed 408 | . 13 . 19 11 17 32 22 8 6 . 19 54 29 13 165 Hits 830 | . 53 . 57 14 104 49 39 25 13 . 35 95 93 24 229 Melee 4 | . . . . . . . . 1 . . . 2 . . 1 Projectile 826 | . 53 . 57 14 104 49 39 24 13 . 35 93 93 24 228 AOE 3 | . . . . . . . . . . . . . . . 3 Critical Strikes 31 | . . . 3 1 3 2 2 . . . 1 1 3 4 11 Part Disruptions 10 | . . . . . 9 . . . . . . . . . 1 Damage Taken 13938 | . 708 . 685 223 1365 784 610 464 108 . 575 1344 2354 567 4151 Core 2274 | . 193 . 102 42 181 159 118 91 . . 14 75 221 75 1003 Absorbed by Shields 434 | . . . . . 376 58 . . . . . . . . . Regen/Repaired (Parts) 4220 | . . . . . 145 259 120 71 . 352 565 1017 1160 223 308 Core Remaining (%) 48 | 100 . 22 . . 18 . . . . 47 . . . 54 . Volleys Fired 681 | 8 97 14 63 45 89 51 20 31 . . 29 69 56 40 69 Largest 3 | 2 2 2 2 2 2 3 3 2 . . 3 3 3 3 3 Hottest 240 | 70 105 90 112 46 156 216 186 153 . . 145 181 240 158 198 Shots Fired 1362 | 16 181 28 123 88 125 127 36 40 . . 66 147 142 119 124 Gun 1149 | 16 181 28 123 88 125 79 30 12 . . 31 112 102 119 103 Cannon 177 | . . . . . . 48 . 7 . . 33 30 39 . 20 Launcher 19 | . . . . . . . 6 7 . . . 4 1 . 1 Special 17 | . . . . . . . . 14 . . 2 1 . . . Kinetic 605 | 8 74 . 85 88 100 25 . 7 . . 31 93 55 39 . Thermal 577 | 8 85 . 34 . 22 54 30 12 . . 8 35 86 80 123 Explosive 13 | . . . . . . . 6 7 . . . . . . . Electromagnetic 150 | . 22 28 4 . 3 48 . . . . 25 18 1 . 1 Robot Hit Streak 28 | 4 12 5 15 11 17 24 17 14 . . 13 28 12 12 7 Robot Miss Streak 17 | 1 5 3 3 2 17 7 5 7 . . 5 3 2 4 5 Penetration Max 1 | . . . . . . 1 . . . . . 1 1 . . Secondary Targets 6 | . . . 1 2 . 1 . . . . . . 2 . . Max Gunslinging Chain 1 | . . . 1 1 . 1 . . . . . . 1 . . Shots Hit Robots 977 | 10 117 11 85 52 113 99 23 37 1 . 47 114 103 86 79 Core Hits 474 | 7 42 8 38 23 39 91 26 12 . . 32 56 40 29 31 Critical Kills 8 | . 1 . 1 . 1 . . . . . . 2 1 1 1 Critical Parts Destroyed 10 | . . . 1 . . . . . . . . 4 3 2 . Critical Strikes 27 | 1 4 . 7 . 1 . . . . . . 6 4 3 1 Burn 9 | 1 3 . 5 . . . . . . . . . . . . Meltdown 3 | . . . . . . . . . . . . 2 . . 1 Destroy 15 | . 1 . 2 . 1 . . . . . . 4 4 3 . Melee Attacks 156 | . . . 8 4 24 23 . 14 1 8 19 27 . 3 25 Impact 4 | . . . 4 . . . . . . . . . . . . Slashing 119 | . . . 4 3 . 23 . 14 1 8 19 21 . 1 25 Piercing . | . . . . . . . . . . . . . . . . Sneak Attacks 42 | . . . . 1 21 2 . . 1 . 4 8 . 2 3 Combat Hostiles . | . . . . . . . . . . . . . . . . Follow-up Attacks . | . . . . . . . . . . . . . . . . Damage Inflicted 22775 | 126 1592 184 1400 797 1469 3628 929 1439 76 . 1219 2810 2677 2059 2370 Guns 15449 | 126 1536 164 1338 797 1466 1947 497 179 . . 537 1900 1651 2059 1252 Cannons 3188 | . . . . . . 573 . 199 . . 325 592 952 . 547 Explosions 2295 | . 56 20 . . . 946 432 583 . . . 170 74 . 14 Melee 1729 | . . . . . . 157 . 478 76 . 313 148 . . 557 Ramming 114 | . . . 62 . 3 5 . . . . 44 . . . . Kinetic 7604 | 62 610 . 839 797 995 303 . 199 . . 537 1558 942 762 . Thermal 10255 | 64 757 20 473 . 443 2184 497 341 . . 44 675 1661 1297 1799 Explosive 853 | . . . . . . . 432 421 . . . . . . . Electromagnetic 2220 | . 225 164 26 . 28 979 . . . . 281 429 74 . 14 Impact . | . . . . . . . . . . . . . . . . Slashing 1729 | . . . . . . 157 . 478 76 . 313 148 . . 557 Piercing . | . . . . . . . . . . . . . . . . Highest Corruption 10 | . . . . . 4 3 3 3 3 . 5 10 10 10 9 Average Corruption 4 | . . . . . 3 2 3 3 3 . 4 5 10 8 5 Corruption Purged 10 | . . . . . . . . . . . . . . 10 . Corruption Blocked . | . . . . . . . . . . . . . . . . Effects 230 | . . . . . 47 19 19 13 2 . 21 39 34 20 16 Message Errors 55 | . . . . . 15 5 4 3 . . 5 7 9 4 3 Matter Fused 49 | . . . . . 15 3 3 2 1 . 4 11 5 2 3 Heat Flow Errors 23 | . . . . . 2 . 4 3 . . 2 5 5 . 2 Energy Discharges 26 | . . . . . 7 4 2 1 1 . 3 1 4 2 1 Parts Rejected 8 | . . . . . . 1 . . . . . 1 1 3 2 Parts Fused 1 | . . . . . . . . . . . . . 1 . . Data Loss (minor) 38 | . . . . . 4 4 3 2 . . 7 5 5 6 2 Data Loss (major) 12 | . . . . . 1 1 . 1 . . . 5 2 1 1 Misfires 2 | . . . . . . . . 1 . . . 1 . . . Alerts 9 | . . . . . 1 1 3 . . . . 1 2 1 . Weapon Failures 7 | . . . . . 2 . . . . . . 2 . 1 2 Overload Shots 1 | . . . . . . . . . . . . . 1 . . Overflow Damage 731 | . 40 . . . . 99 13 286 51 . 57 82 11 . 92 Projectiles 28 | . . . . . . 7 . . . . . 4 11 . 6 Explosions 186 | . 40 . . . . 92 13 41 . . . . . . . Melee 517 | . . . . . . . . 245 51 . 57 78 . . 86 Knockbacks 4 | . . . 2 . . 2 . . . . . . . . . Impact 2 | . . . 2 . . . . . . . . . . . . Kinetic 2 | . . . . . . 2 . . . . . . . . . Secondary . | . . . . . . . . . . . . . . . . Self-Inflicted Damage 494 | . 91 . 30 . . 212 . 104 . . 44 13 . . . Shots 13 | . 2 . . . . 4 . 6 . . . 1 . . . Rammed 6 | . . . 4 . 2 . . . . . . . . . . Targets Rammed 7 | . . . 4 . 2 1 . . . . . . . . . Kicked 1 | . . . . . . 1 . . . . . . . . . Crushed . | . . . . . . . . . . . . . . . . Highest Temperature 553 | 27 155 120 226 5 320 177 237 226 . . 190 553 322 262 392 Average Temperature 83 | 9 38 37 36 4 93 63 51 66 . . 65 159 121 71 76 Received Heat Transfer 2945 | . 324 . 246 90 550 209 141 80 9 . 45 126 492 126 507 Effects 20 | . . . . . . . . . . . . 18 2 . . Shutdowns 3 | . . . . . . . . . . . . 3 . . . Energy Bleed 3 | . . . . . . . . . . . . 3 . . . Interference 2 | . . . . . . . . . . . . . 2 . . Matter Decay 1 | . . . . . . . . . . . . 1 . . . Short Circuit 2 | . . . . . . . . . . . . 2 . . . Damage (minor) 4 | . . . . . . . . . . . . 4 . . . Damage (major) 5 | . . . . . . . . . . . . 5 . . . Siege Activations . | . . . . . . . . . . . . . . . . Martial Activations . | . . . . . . . . . . . . . . . . Shielding Activations . | . . . . . . . . . . . . . . . . Robots Disrupted . | . . . . . . . . . . . . . . . . Combat Hostiles . | . . . . . . . . . . . . . . . . Robots Corrupted 2 | . . . . . . 1 . . . . . 1 . . . Combat Hostiles 2 | . . . . . . 1 . . . . . 1 . . . Parts Fried 7 | . . . . . . 3 . . . . . 3 1 . . Impact Corruptions . | . . . . . . . . . . . . . . . . Robots Melted 4 | . 1 . . . . . . . . . . 2 . . 1 Combat Hostiles 4 | . 1 . . . . . . . . . . 2 . . 1 Parts Melted 45 | . 5 . 3 . . 11 3 . . . 1 4 3 11 4 Heat Transferred 16938 | 259 2270 . 1406 . 1225 3833 800 150 . . 100 420 2294 2183 1998 Parts Sabotaged . | . . . . . . . . . . . . . . . . Parts Stolen 1 | . . . . . . . . 1 . . . . . . . Parts Stripped . | . . . . . . . . . . . . . . . . Power Chain Reactions 7 | . 2 1 . . . 1 . 1 . . . 2 . . . Alert | -11 -10 -10 -9 -9 -9 -7 -7 -7 -7 -6 -6 -6 -6 -6 -5 ------- Run | Yrd Mat Min Mat Sto Rec Fac Low Low Zio Pro Fac Ext Cet Arc Fac Maximum Alert Level 2 | . . . . 2 . 2 . . . . . 2 1 . 1 Low Security (%) 82 | 100 100 100 100 54 100 32 . . . . 100 54 94 100 92 Level 1 16 | . . . . 32 . 66 . . . . . 38 5 . 7 Level 2 1 | . . . . 12 . 1 . . . . . 6 . . . Level 3 . | . . . . . . . . . . . . . . . . Level 4 . | . . . . . . . . . . . . . . . . Level 5 . | . . . . . . . . . . . . . . . . High Security . | . . . . . . . . . . . . . . . . Max Security . | . . . . . . . . . . . . . . . . Peak Influence 591 | 10 115 35 184 433 172 591 . . . . 176 475 269 80 250 Initial 259 | . . 35 . 40 159 226 . . . . . 68 259 54 . Average 93 | 2 41 3 83 191 21 232 . . . . 59 160 82 23 64 Influence Increases 6762 | 30 575 61 673 810 225 1263 289 77 . . 434 1072 383 166 704 Destroy 0b10 Robot/C 3400 | . 320 . 380 360 100 420 260 60 . . 220 540 300 80 360 Destroy 0b10 Robot/NC 505 | 30 60 40 70 45 35 75 5 15 . . 20 55 10 30 15 Destroy Leader 666 | . 76 . 110 94 . 146 20 . . . 54 84 20 . 62 Allied During Kill 520 | . . . 18 153 26 . 4 2 . . . 298 14 . 5 Successful Hack 254 | . 15 . 69 22 25 63 . . . . 21 25 . . 14 Select Force Hacks 120 | . 30 . . 60 30 . . . . . . . . . . Disable Machine 405 | . . 15 15 45 . 225 . . . . 15 15 30 45 . Destroy Structure 242 | . 14 6 11 1 9 104 . . . . 14 25 9 11 38 Advance Influence 200 | . . . . . . 200 . . . . . . . . . Partial Spotted 30 | . . . . . . 15 . . . . . . . . 15 Lose Combat Pursuer 420 | . 60 . . 30 . 15 . . . . 90 30 . . 195 Influence Decreases 6540 | 30 484 152 577 498 569 736 652 305 . . 293 749 712 301 482 Entered New Map 1022 | . . 56 . 56 249 38 220 44 . . . 73 205 81 . Time Decay 4614 | 30 428 96 497 362 204 648 422 261 . . 293 524 337 220 292 Lost Part 354 | . 56 . 20 . . 20 10 . . . . 48 30 . 170 Lost Ally 550 | . . . 60 80 116 30 . . . . . 104 140 . 20 Squads Dispatched 38 | . 5 . 1 8 . 12 . . . . 6 3 . . 3 Investigation 12 | . 3 . . 4 . 3 . . . . . 2 . . . Extermination 11 | . . . . . . 6 . . . . 3 . . . 2 Reinforcement 11 | . 2 . 1 1 . 2 . . . . 3 1 . . 1 Assault . | . . . . . . . . . . . . . . . . Garrison 4 | . . . . 3 . 1 . . . . . . . . . Intercept . | . . . . . . . . . . . . . . . . Searches Triggered . | . . . . . . . . . . . . . . . . Construction Impeded . | . . . . . . . . . . . . . . . . Haulers Reinforced 1 | . . . . . . . . . . . 1 . . . . Active Scanning Responses . | . . . . . . . . . . . . . . . . Cargo Convoy Interrupts 1 | . . . . . . . . . . . . . . . 1 Stealth | -11 -10 -10 -9 -9 -9 -7 -7 -7 -7 -6 -6 -6 -6 -6 -5 --------- Run | Yrd Mat Min Mat Sto Rec Fac Low Low Zio Pro Fac Ext Cet Arc Fac Distress Signals 16 | . 3 . 3 2 . 2 . . . . 1 1 2 . 2 Communications Jammed 4 | . . . . . . . . . . . . . . . 4 Distress Signals 3 | . . . . . . . . . . . . . . . 3 Times Spotted 294 | . 35 . 31 24 15 29 15 5 4 . 18 31 18 19 50 Peak Tracking Total 11 | . 4 . 6 4 4 3 5 3 4 . 5 5 6 1 11 Tactical Retreats 23 | . 3 . . 2 7 1 . . 1 . 2 1 . . 6 Traps | -11 -10 -10 -9 -9 -9 -7 -7 -7 -7 -6 -6 -6 -6 -6 -5 ------- Run | Yrd Mat Min Mat Sto Rec Fac Low Low Zio Pro Fac Ext Cet Arc Fac Traps Triggered 9 | . 3 . . 1 . 3 . . . . . 2 . . . Indirectly . | . . . . . . . . . . . . . . . . Trap Hack Attempts . | . . . . . . . . . . . . . . . . Triggered . | . . . . . . . . . . . . . . . . Disarmed . | . . . . . . . . . . . . . . . . Reprogrammed . | . . . . . . . . . . . . . . . . Reused . | . . . . . . . . . . . . . . . . Traps Extracted . | . . . . . . . . . . . . . . . . Installed 3 | . . 3 . . . . . . . . . . . . . Triggered . | . . . . . . . . . . . . . . . . Most Traps Carried 1 | . . . . . . . 1 1 1 1 1 . . . . Machines | -11 -10 -10 -9 -9 -9 -7 -7 -7 -7 -6 -6 -6 -6 -6 -5 ---------- Run | Yrd Mat Min Mat Sto Rec Fac Low Low Zio Pro Fac Ext Cet Arc Fac Machines Disabled 32 | . . 1 1 3 . 15 . 2 . . 1 3 3 3 . Max in Single Turn 5 | . . 1 1 1 . 5 . 1 . . 1 . 1 1 . Garrison Access 1 | . . . . . . 1 . . . . . . . . . Machines Repaired . | . . . . . . . . . . . . . . . . Machines Dismantled . | . . . . . . . . . . . . . . . . Machines Sabotaged . | . . . . . . . . . . . . . . . . Overloaded Fab Kills . | . . . . . . . . . . . . . . . . Hacking | -11 -10 -10 -9 -9 -9 -7 -7 -7 -7 -6 -6 -6 -6 -6 -5 --------- Run | Yrd Mat Min Mat Sto Rec Fac Low Low Zio Pro Fac Ext Cet Arc Fac Machines Accessed 79 | . 7 1 11 8 11 13 . 1 . . 6 13 3 1 4 Terminals 57 | . 6 . 9 6 6 9 . . . . 3 13 3 . 2 Fabricators 3 | . . . . . . 3 . . . . . . . . . Repair Stations 1 | . . . . . . . . . . . 1 . . . . Recycling Units 8 | . 1 . 1 2 3 . . . . . . . . . 1 Scanalyzers 2 | . . . 1 . . . . . . . 1 . . . . Garrison Access 3 | . . . . . . 1 . . . . 1 . . . 1 Total Hacks 232 | . 21 1 36 22 44 36 . 1 . . 10 24 7 25 5 Successful 133 | . 10 1 16 9 36 20 . 1 . . 2 11 . 25 2 Failed 98 | . 11 . 19 13 8 16 . . . . 8 13 7 . 3 Catastrophic 14 | . . . 2 . 2 3 . . . . 1 3 3 . . Database Lockouts 1 | . . . 1 . . . . . . . . . . . . Manual 109 | . 9 . 28 22 13 27 . . . . 4 4 2 . . Terminals 144 | . 20 . 30 20 11 25 . . . . 5 24 7 . 2 Fabricators 10 | . . . . . . 10 . . . . . . . . . Repair Stations 1 | . . . . . . . . . . . 1 . . . . Recycling Units 13 | . 1 . 1 2 7 . . . . . . . . . 2 Scanalyzers 6 | . . . 5 . . . . . . . 1 . . . . Garrison Access 5 | . . . . . . 1 . . . . 3 . . . 1 Terminal Hacks 84 | . 7 1 2 2 28 8 . 1 . . . 9 . 25 1 Record 51 | . . . . . 24 2 . . . . . . . 25 . Part Schematic 4 | . . . 2 . . 2 . . . . . . . . . Robot Analysis 1 | . . . . 1 . . . . . . . . . . . Prototype ID Bank 1 | . 1 . . . . . . . . . . . . . . Open Door 10 | . . 1 . . . . . 1 . . . 8 . . . Level Access Points 1 | . . . . . 1 . . . . . . . . . . Branch Access Points 2 | . 1 . . . . 1 . . . . . . . . . Alert Level 3 | . 1 . . . 1 1 . . . . . . . . . Locate Traps 5 | . 1 . . . . 2 . . . . . 1 . . 1 Transport Status 1 | . 1 . . . . . . . . . . . . . . Recall Investigation 1 | . . . . 1 . . . . . . . . . . . Hauler Manifests 1 | . 1 . . . . . . . . . . . . . . Zone Layout 1 | . 1 . . . . . . . . . . . . . . Release Object 2 | . . . . . 2 . . . . . . . . . . Fabricator Hacks 4 | . . . . . . 4 . . . . . . . . . Network Status 1 | . . . . . . 1 . . . . . . . . . Load Schematic 3 | . . . . . . 3 . . . . . . . . . Repair Station Hacks . | . . . . . . . . . . . . . . . . Recycling Unit Hacks 6 | . . . 1 . 4 . . . . . . . . . 1 Report Inventory 3 | . . . 1 . 2 . . . . . . . . . . Retrieve Components 3 | . . . . . 2 . . . . . . . . . 1 Scanalyzer 3 | . . . 2 . . . . . . . 1 . . . . Retrieve Study 3 | . . . 2 . . . . . . . 1 . . . . Garrison Access Hacks 1 | . . . . . . 1 . . . . . . . . . Seal Access 1 | . . . . . . 1 . . . . . . . . . Unauthorized Hacks 34 | . 3 . 10 7 4 7 . . . . 1 2 . . . Terminals 28 | . 2 . 10 5 3 5 . . . . 1 2 . . . Botnet 17 | . 2 . 5 3 3 2 . . . . . 2 . . . Skim 11 | . . . 5 2 . 3 . . . . 1 . . . . Fabricators 2 | . . . . . . 2 . . . . . . . . . Prioritize 1 | . . . . . . 1 . . . . . . . . . Recompile 1 | . . . . . . 1 . . . . . . . . . Repair Stations . | . . . . . . . . . . . . . . . . Recycling Units 4 | . 1 . . 2 1 . . . . . . . . . . Tunnel 4 | . 1 . . 2 1 . . . . . . . . . . Scanalyzers . | . . . . . . . . . . . . . . . . Garrison Access . | . . . . . . . . . . . . . . . . Data Cores Recovered 1 | . . . . . . 1 . . . . . . . . . Used 1 | . . . . . . 1 . . . . . . . . . Hacking Detections 62 | . 6 . 10 6 7 11 . . . . 6 9 3 . 4 Full Trace Events 12 | . 2 . 1 2 3 2 . . . . . 2 . . . Feedback Events 2 | . . . . . . 2 . . . . . . . . . Corruption 1 | . . . . . . 1 . . . . . . . . . Hackware Fried 1 | . . . . . . 1 . . . . . . . . . Feedback Blocked . | . . . . . . . . . . . . . . . . Robot Schematics Acquired . | . . . . . . . . . . . . . . . . Robots Built . | . . . . . . . . . . . . . . . . Authchips . | . . . . . . . . . . . . . . . . Time . | . . . . . . . . . . . . . . . . Total Robot Build Rating . | . . . . . . . . . . . . . . . . Part Schematics Acquired 4 | . . . 2 . . 2 . . . . . . . . . Parts Built . | . . . . . . . . . . . . . . . . Authchips . | . . . . . . . . . . . . . . . . Time . | . . . . . . . . . . . . . . . . Total Part Build Rating . | . . . . . . . . . . . . . . . . Part Studies Acquired 3 | . . . 2 . . . . . . . 1 . . . . Parts Repaired . | . . . . . . . . . . . . . . . . Time . | . . . . . . . . . . . . . . . . Parts Recycled . | . . . . . . . . . . . . . . . . Recycled Matter . | . . . . . . . . . . . . . . . . Retrieved Matter . | . . . . . . . . . . . . . . . . Retrieved Components 25 | . . . . . 16 . . . . . . . . . 9 Parts Scanalyzed . | . . . . . . . . . . . . . . . . Part Schematics Acquired . | . . . . . . . . . . . . . . . . Parts Damaged . | . . . . . . . . . . . . . . . . Bothacking | -11 -10 -10 -9 -9 -9 -7 -7 -7 -7 -6 -6 -6 -6 -6 -5 ------------ Run | Yrd Mat Min Mat Sto Rec Fac Low Low Zio Pro Fac Ext Cet Arc Fac Used RIF Installer . | . . . . . . . . . . . . . . . . Robots Hacked 3 | . . . . . . . . . . . 1 1 . 1 . Non-combat 2 | . . . . . . . . . . . 1 . . 1 . Combat . | . . . . . . . . . . . . . . . . Robot Hacks Applied 3 | . . . . . . . . . . . 1 . . 2 . no_distress 2 | . . . . . . . . . . . 1 . . 1 . check_alert 1 | . . . . . . . . . . . . . . 1 . Manual 1 | . . . . . . . . . . . . 1 . . . Relay Couplers Released . | . . . . . . . . . . . . . . . . Fabnet Peak Effective % . | . . . . . . . . . . . . . . . . Robots Rewired 21 | . . . . 1 11 . 1 4 . . . 4 . . . Allies Hacked . | . . . . . . . . . . . . . . . . Hacks Repelled . | . . . . . . . . . . . . . . . . Allies | -11 -10 -10 -9 -9 -9 -7 -7 -7 -7 -6 -6 -6 -6 -6 -5 -------- Run | Yrd Mat Min Mat Sto Rec Fac Low Low Zio Pro Fac Ext Cet Arc Fac Total Allies 45 | . . 3 . 10 11 . 1 4 . . . 16 . . . Largest Group 15 | . . 3 3 10 15 5 1 4 4 . . 8 6 . . Highest-Rated Group 253 | . . 40 40 88 181 85 30 64 64 . . 253 168 . . Highest-Rated Ally 85 | . . 16 16 16 27 27 30 16 16 . . 85 39 . . Total Orders 10 | . . 1 . . 6 2 . 1 . . . . . . . DROP 3 | . . . . . 1 2 . . . . . . . . . PICKUP 5 | . . . . . 5 . . . . . . . . . . RETURN 2 | . . 1 . . . . . 1 . . . . . . . Ally Attacks 353 | . . . 26 101 42 . 5 . 20 . . 110 28 . 21 Total Damage 4583 | . . . 264 1004 395 . 144 . 230 . . 2113 352 . 81 Kills 44 | . . . 5 12 4 . 2 . 1 . . 17 2 . 1 Allies Corrupted . | . . . . . . . . . . . . . . . . Allies Melted 1 | . . . . . . . . . . . . 1 . . . Intel | -11 -10 -10 -9 -9 -9 -7 -7 -7 -7 -6 -6 -6 -6 -6 -5 ------- Run | Yrd Mat Min Mat Sto Rec Fac Low Low Zio Pro Fac Ext Cet Arc Fac Active Infowar (turns) 12646 | 53 1827 1277 1983 269 . 1582 892 905 236 812 1234 731 310 29 506 Sensors 1337 | . . . . . . . . . . . . 571 310 . 456 Seismic 11230 | 53 1827 1277 1983 269 . 1582 892 905 236 812 1234 160 . . . Jamming 530 | . . . . . . . . . . . . . . 29 501 Robot Analysis Total 1 | . . . . 1 . . . . . . . . . . . Derelict Logs Recovered 4 | . . 1 . . . . 1 1 . 1 . . . . . Drone Launches 12 | . . 1 . . 3 . . 3 . . . . 3 . 2 Drone Recoveries 10 | . . 1 . . 3 . . 3 . . . . 2 . 1 Exploration | -11 -10 -10 -9 -9 -9 -7 -7 -7 -7 -6 -6 -6 -6 -6 -5 ------------- Run | Yrd Mat Min Mat Sto Rec Fac Low Low Zio Pro Fac Ext Cet Arc Fac Turns Passed 19690 | 129 1860 1280 2149 1070 2212 2379 1020 987 236 812 1250 1614 1003 679 1010 Spaces Moved 12771 | 107 791 580 1004 645 1020 1954 951 851 234 648 1182 1300 567 299 638 Core 110 | 10 . . . . . . . . . . . . . . 100 Treads 2096 | . 56 302 18 . 42 73 . . . . 594 374 133 299 205 Legs 4736 | . 111 . . . . 653 951 851 234 648 588 131 419 . 150 Wheels 3452 | 97 624 278 986 645 631 175 . . . . . 16 . . . Hover 1786 | . . . . . 347 1053 . . . . . 386 . . . Flight 591 | . . . . . . . . . . . . 393 15 . 183 Fastest Speed 27 | 50 80 110 105 120 85 50 82 82 82 82 66 53 53 159 27 Average Speed 102 | 77 133 191 125 128 110 85 82 90 98 82 69 80 129 159 99 Slowest Speed 480 | 80 260 240 480 135 199 230 82 101 101 82 82 133 159 159 250 Overloaded Moves . | . . . . . . . . . . . . . . . . Propulsion Burnouts . | . . . . . . . . . . . . . . . . Robots Hopped 2 | . . . . . . . . . . . . 1 . . 1 Potential Cave-ins . | . . . . . . . . . . . . . . . . Cave-ins Triggered . | . . . . . . . . . . . . . . . . Exploration Rate (%) 66 | 5 94 98 68 69 89 41 94 87 14 87 25 87 84 98 19 Regions Visited 15 Branch Regions 10 Pre-discovered Areas 6 | . 1 . 2 2 1 . . . . . . . . . . Known Exits Taken 5 | . 1 . 1 1 1 1 . . . . . . . . . Unknown Exits Taken 10 | 1 . 1 . . . . 1 1 1 1 1 1 1 1 . Scrap Searched 10 | . . 1 . . . . 4 3 1 1 . . . . . Spaces Dug 86 | . . . 8 . . 19 23 6 . 8 14 . . 1 7 Terrain Destroyed 338 | . 6 6 8 . 4 118 53 66 . 8 14 13 11 12 19 Melee 63 | . . . 8 . . 19 . 6 . 8 14 . . 1 7 Projectile 53 | . . . . . . . 6 3 . . . 10 11 11 12 AOE 215 | . 6 6 . . . 96 47 57 . . . 3 . . . Terrain Rammed 2 | . . . . . . . . . . . 2 . . . . Walls Destroyed . | . . . . . . . . . . . . . . . . Machines Disabled . | . . . . . . . . . . . . . . . . Actions | -11 -10 -10 -9 -9 -9 -7 -7 -7 -7 -6 -6 -6 -6 -6 -5 --------- Run | Yrd Mat Min Mat Sto Rec Fac Low Low Zio Pro Fac Ext Cet Arc Fac Total 17886 | 137 1415 724 1764 791 1966 2518 1156 1013 238 914 1524 1707 728 429 862 Wait 3741 | . 466 109 618 71 770 419 173 107 1 257 272 286 61 62 69 Move 12752 | 106 790 579 1003 644 1019 1953 950 850 233 647 1181 1297 566 298 636 Hop 2 | . . . . . . . . . . . . 1 . . 1 Pick Up 158 | 15 26 8 19 3 10 27 4 2 2 1 7 5 11 5 13 Fast Attach 47 | 1 7 . 8 3 1 5 . . . . 1 1 4 5 11 Attach 68 | 6 8 . 5 . 8 4 3 3 . . 1 7 7 1 15 Detach 19 | . . . 2 . 2 2 2 2 . . . 4 1 . 4 Swap 122 | . 9 5 11 14 17 19 1 3 . . 6 6 12 9 10 Drop 123 | 1 12 6 23 7 24 13 1 1 1 1 6 2 10 6 9 Fire 681 | 8 97 14 63 45 89 51 20 31 . . 29 69 56 40 69 Melee 156 | . . . 8 4 24 23 . 14 1 8 19 27 . 3 25 Ram 6 | . . . 4 . . . . . . . 2 . . . . Kick 1 | . . . . . . 1 . . . . . . . . . Crush 2 | . . . . . 2 . . . . . . . . . . Escape Stasis 3 | . . . . . . 1 . . . . . 2 . . . Rewire 2 | . . . . . . . 2 . . . . . . . . Trap 3 | . . 3 . . . . . . . . . . . . . Miscellaneous . | . . . . . . . . . . . . . . . . Route ------- -11/Scrapyard -10/Materials (discovered 5 exits: *Mat x3 / *Min / [*Sub]) -10/Mines (discovered 3 exits: *Mat x2 / [*Sub]) -9/Materials (discovered 2 exits: [*Mat] / *Sto) -9/Storage -9/Recycling -7/Factory (discovered 3 exits: *Fac / *Low x2) -7/Lower Caves -7/Lower Caves (discovered 2 exits: *Fac / [*Zio]) -7/Zion -6/Proximity Caves -6/Factory (discovered 3 exits: *Fac / [*Low] / *Ext) -6/Extension (discovered 2 exits: *Fac / *Cet) -6/Cetus (discovered 2 exits: *Fac / *Arc) -6/Archives (discovered 3 exits: *Fac / [*Hub x2]) -5/Factory (discovered 2 exits: [*Fac] / Upp) History --------- Turn | Location | Event 2 | -11/Scrapyard | Met Revision 17 11 | -11/Scrapyard | Discovered new exit (range 14) 130 | -11/Scrapyard | Entered Materials 309 | -10/Materials | Build established: Mutant 605 | -10/Materials | Discovered new exit (range 15) 778 | -10/Materials | Discovered new exit (range 8) 1025 | -10/Materials | Discovered new exit (range 8) 1232 | -10/Materials | Discovered new exit (range 16) 1320 | -10/Materials | Core integrity fell below 50% 1370 | -10/Materials | Lost 4 parts (1n1u2w) 1761 | -10/Materials | Build established: Scavenger-Mutant 1761 | -10/Materials | Identified exit to Mines 1990 | -10/Materials | Entered Mines 2086 | -10/Mines | Build established: Mutant 2149 | -10/Mines | Found a hidden stash of uninstalled traps 2430 | -10/Mines | Discovered new exit (range 8) 2622 | -10/Mines | Discovered new exit (range 8) 2640 | -10/Mines | Found the Drone Emporium 2678 | -10/Mines | Found Prototype Device 2691 | -10/Mines | Identified Thief Drone Bay 2947 | -10/Mines | Discovered new exit (range 15) 2947 | -10/Mines | Assisted by bots powering up and referring to "LRC-V3" 3270 | -10/Mines | Entered Materials 3270 | -9/Materials | Accompanied by 3 allies 3270 | -9/Materials | Evolved 2 slots: Propulsion x2 3271 | -9/Materials | Identified exit to Storage 3581 | -9/Materials | Build established: Scavenger-Mutant 4149 | -9/Materials | Build established: Mutant 4167 | -9/Materials | Loaded intel: 12 terminal locations 4192 | -9/Materials | Learned 2 Storage zone layouts 4206 | -9/Materials | Learned location of Recycling (-9) 4209 | -9/Materials | Learned 4 Recycling zone layouts 4224 | -9/Materials | Learned location of Storage (-9) 4777 | -9/Materials | Discovered new exit (range 10) 4831 | -9/Materials | Build established: Scavenger-Mutant 4855 | -9/Materials | Central database locked down 5419 | -9/Materials | Entered Storage 5420 | -9/Storage | Identified exit to Recycling 5469 | -9/Storage | Met 01-MTF 5870 | -9/Storage | Assisted by bots powering up and referring to "LRC-V3" 6006 | -9/Storage | Garrison activated, responded to threat 6171 | -9/Storage | Build established: Commander-Mutant 6489 | -9/Storage | Entered Recycling 6489 | -9/Recycling | Accompanied by 6 allies (01-MTF) 6759 | -9/Recycling | Scanned before Scraplab entrance 6778 | -9/Recycling | Angered Scraplab inhabitants 6824 | -9/Recycling | Core integrity fell below 50% 6833 | -9/Recycling | Destroyed 01-MTF 6835 | -9/Recycling | Lost 10 allies 6851 | -9/Recycling | Core integrity fell below 20% 6876 | -9/Recycling | Lost 7 parts (1p4n1u1w) 6920 | -9/Recycling | Found KN-7UR's Autopenetrator 6926 | -9/Recycling | Found Prototype Device 6971 | -9/Recycling | Identified Scrap Engine 7407 | -9/Recycling | Build established: Commander-Construct 8608 | -9/Recycling | Identified exit to Factory 8701 | -9/Recycling | Entered Factory 8701 | -7/Factory | Accompanied by 5 allies 8701 | -7/Factory | Evolved 4 slots: Utility x3, Weapon x1 8848 | -7/Factory | Garrison activated, responded to threat 9310 | -7/Factory | Build established: Construct 9400 | -7/Factory | Allied Derelicts emerged from ambush trap array 9407 | -7/Factory | Discovered new exit (range 8) 9587 | -7/Factory | Hacking Suite fried by hacking feedback 9631 | -7/Factory | Lost 3 allies 10349 | -7/Factory | Identified exit to Lower Caves 11080 | -7/Factory | Entered Lower Caves 11242 | -7/Lower Caves | Entered a destroyed Warlord outpost 11356 | -7/Lower Caves | Attracted the attention of an 0b10 checkpoint 11476 | -7/Lower Caves | Encountered a Warlord checkpoint 11515 | -7/Lower Caves | Attracted the attention of an 0b10 outpost 11836 | -7/Lower Caves | Found DCF Scrap (13 items) 11915 | -7/Lower Caves | Discovered new exit (range 10) 12100 | -7/Lower Caves | Entered another Lower Caves area 12178 | -7/Lower Caves | Discovered new exit (range 11) 12251 | -7/Lower Caves | Ambushed by research squad 12485 | -7/Lower Caves | Attacked by a delusional Derelict stockpiling Unaware 12488 | -7/Lower Caves | Core integrity fell below 50% 12561 | -7/Lower Caves | Learned Factory trap positions 12758 | -7/Lower Caves | Discovered new exit (range 14) 12823 | -7/Lower Caves | Build established: Commander-Construct 12958 | -7/Lower Caves | Entered a destroyed Warlord outpost 13087 | -7/Lower Caves | Entered Zion 13087 | -7/Zion | Accompanied by 4 allies 13119 | -7/Zion | Given the Hacking Drone Bay 13180 | -7/Zion | System corruption cleaned by Quarantine Array 13203 | -7/Zion | Discovered new exit (range 16) 13283 | -7/Zion | Attacked by Zionites 13283 | -7/Zion | Spotted DM-Y4E(B) 13283 | -7/Zion | Spotted AO-JW2(B) 13310 | -7/Zion | Found GAL Module 13323 | -7/Zion | Entered Proximity Caves 13333 | -6/Proximity Caves | Lost 4 allies 13548 | -6/Proximity Caves | Learned Factory emergency access door positions 13605 | -6/Proximity Caves | Build established: Construct 13855 | -6/Proximity Caves | Received a Behemoth hack from an annoying Tinkerer 14092 | -6/Proximity Caves | Discovered new exit (range 8) 14135 | -6/Proximity Caves | Entered Factory 14135 | -6/Factory | Evolved 2 slots: Power x1, Utility x1 14136 | -6/Factory | Loaded intel: 130 trap records 14479 | -6/Factory | Discovered new exit (range 5) 14631 | -6/Factory | Discovered new exit (range 14) 15171 | -6/Factory | Discovered new exit (range 16) 15385 | -6/Factory | Entered Extension 15418 | -6/Extension | Rescued a captive Derelict 15672 | -6/Extension | Rescued a captive Derelict 15696 | -6/Extension | Rescued a captive Derelict 15696 | -6/Extension | Rescued a captive Derelict 16045 | -6/Extension | Spotted B-75 Beast 16049 | -6/Extension | Befriended a Behemoth using the annoying Tinkerer's hack 16055 | -6/Extension | Spotted B-75 Beast 16087 | -6/Extension | Allies destroyed B-75 Beast 16110 | -6/Extension | Disrupted transfer network 16114 | -6/Extension | Lost 3 allies 16481 | -6/Extension | Rescued a captive Derelict 16483 | -6/Extension | Rescued a captive Derelict 16527 | -6/Extension | Rescued a captive Derelict 16538 | -6/Extension | Rescued a captive Derelict 16545 | -6/Extension | Rescued a captive Derelict 16546 | -6/Extension | Rescued a captive Derelict 16718 | -6/Extension | Rescued a captive Derelict 16856 | -6/Extension | Discovered new exit (range 10) 16867 | -6/Extension | System corruption reached 10% 16877 | -6/Extension | Discovered new exit (range 7) 16999 | -6/Extension | Entered Cetus 16999 | -6/Cetus | Accompanied by 6 allies 17042 | -6/Cetus | Spotted Cetus Guard 17043 | -6/Cetus | Spotted Cetus Guard 17044 | -6/Cetus | Spotted Cetus Guard 17072 | -6/Cetus | Destroyed Cetus Guard 17079 | -6/Cetus | Destroyed Cetus Guard 17098 | -6/Cetus | Lost 6 allies 17236 | -6/Cetus | Discovered new exit (range 16) 17280 | -6/Cetus | Spotted Cetus Guard 17281 | -6/Cetus | Spotted Cetus Guard 17325 | -6/Cetus | Spotted Cetus Guard 17329 | -6/Cetus | Spotted Cetus Guard 17353 | -6/Cetus | Destroyed Cetus Guard 17356 | -6/Cetus | Destroyed Cetus Guard 17358 | -6/Cetus | Allies destroyed Cetus Guard 17381 | -6/Cetus | Destroyed Cetus Guard 17388 | -6/Cetus | Lost 3 parts (2p1w) 17647 | -6/Cetus | Discovered new exit (range 15) 17659 | -6/Cetus | Met Revision 17 17749 | -6/Cetus | Security sweep announced 17896 | -6/Cetus | Destroyed 8 combat bots 18002 | -6/Cetus | Entered Archives 18215 | -6/Archives | Discovered new exit (range 16) 18225 | -6/Archives | Unable to access archive contents 18247 | -6/Archives | Unable to access archive contents 18264 | -6/Archives | Unable to access archive contents 18289 | -6/Archives | Unable to access archive contents 18292 | -6/Archives | Discovered new exit (range 16) 18546 | -6/Archives | Discovered new exit (range 15) 18681 | -6/Archives | Entered Factory 18681 | -5/Factory | Evolved 2 slots: Utility x2 18682 | -5/Factory | Identified exit to Upper Caves 18824 | -5/Factory | Build established: Scavenger-Construct 19290 | -5/Factory | Lost 3 parts (2u1w) 19453 | -5/Factory | Cargo convoy interrupted 19489 | -5/Factory | Released all parts (6) 19495 | -5/Factory | Discovered new exit (range 13) 19499 | -5/Factory | Core integrity fell below 50% 19513 | -5/Factory | Lost 9 parts (2p1n3u3w) 19642 | -5/Factory | Core integrity fell below 20% 19687 | -5/Factory | Released all parts (5) 19691 | -5/Factory | Destroyed by X-77 Beamer with Gatling Laser Last Messages --------------- 19648_ U-05 Engineer destroyed. 19648_ Slug penetrates Wall. 19649_ Acquired Unknown Flight Unit. 19650_ Identified Imp. Surge Thruster. 19651_ Acquired Imp. Surge Thruster. 19655_ Acquired Imp. Reaction Control System. 19656_ Acquired 35 matter. 19657_ Acquired 23 matter. 19664_ System corrupted: Nuclear Pulse Array rejected. 19670_ Acquired Nuclear Pulse Array. 19683_ Slug penetrates Door. 19685_ Penetrated by Slug. 19685_ Nuclear Pulse Array destroyed. 19687_ Released Imp. Reaction Control System. 19687_ Released Hvy. Phase Cannon. 19687_ Released Imp. Heat Sink. 19687_ Released Imp. Surge Thruster. 19689_ Penetrated by Slug. 19691_ Slug penetrates Wall. Map ----- +----------------------------------------------------+ | ???????# ?????????????????????????# < | | ???????# ??????????????????????????#^ | | ???????# ???????????????????????????######### ! | | ?????????????????????????????????????????????#" | | ?????????????????????????????????????????????## | | ?????????????????????????????????????????????# | | ?????????????????????????????????????????????#T | | ?????????????????????????????????????????????## | | ??????????????????????????????????????????????# | | ??????????????????????????????????????????????# | | ??????????????????????????????????????????????# | | ???????????????????????????????################ | | ?????????????????????????? ??# + | | ?????????????????????????? # ####"# | | ?????????????????????????? # # | | ????????????????????????? # %# | | ?????????????????????????# # """ """ =# | | ?????????????????????????# # """ """ # | | ?????????????????????????# # """ """ # | | ?????????????????????????# # # | | ?????????????????????????# # """ !!!##+### | | ?????????????????????????+ + """ !!!! ## #? | | ?????????????????????????# # """ !!!## #? | | ?????????????????????????# h # = !![## # | | ???????????############### #########+##### # | | ???????????# =!! hw@ /!|]]=* " | | ???????????# ]= w%%######## | | ???????????# !###?##???? | | ???????????# #### ###??? | | ???????????# x Y ##"""""##### | | ?########### i ##########+### # #? | | ?# # p #??????? # # "#? | | ?# # +????? # # #? | | ????"" """ " #???!! # # #? | | ???""" """ # +? !! # # = #? | | ?# """ """ # ### !! # + #? | | ?# + #?# # # [ #? | | ?# = #######?# """"""""" # # #? | | ?# #???????# # #"" """"### | | ?###########???????? """"""""" # %" | | ???????????????????????? # !== | | ????????????????????????????"" / " !%! % | | ??????????????????????????? # %"%! % | | ??????????????????????????????### " % | | ????????????????????????????????#############"# | | ????????????????????????????????????????????###% | | ?????????????????????????????????############## % | | ?????????????????????????????????# # | | ?????????????????????????????????# # | | ?????????????????????????????????# + | +----------------------------------------------------+ Best States ------------- Heat Dissipation 97 Coolant Potential 65 Energy Generation 39 Energy Capacity 935 Matter Stores 300 Matter Capacity 300 Sight Range 16 Robot Scan Range 16 Terrain Scan Density 10 Jamming Range 12 Base Temperature (-) 150 Armor Coverage 225 Weapon Cycling 15 Phase Shifting 5 Evasion (%) 74 Targeting Accuracy 20 Core Analysis 6 Recoil Reduction 4 Offensive Hacking 12 Authchip Count 1 Item Schematics ----------------- VTOL Module | -9/Materials | Hacked Signal Interpreter | -9/Materials | Hacked Adv. Assault Cannon | -7/Factory | Hacked Gravmag System | -7/Factory | Hacked Robot Schematics ------------------ None Fabricated ------------ Nothing Repaired ---------- Nothing Studied --------- Com. Wheel | -9/Materials | Hacked Rocket Launcher | -9/Materials | Hacked Coil Gun | -6/Factory | Hacked Alien Tech Used ----------------- None Achievements -------------- Bending The Rules DIY Cooler Express Service Frienemies GoHome() Into The Breach Not So Scrappy Plot Armor Scrappetite Treasure Hunter Woof! Challenges ------------ None Game ------ Seed PoweredPointyGenerator Manual? 0 Play Time 04:34:09 Cumulative 58.7 hours Start 2025.11.21 @ 09:14:36 End 2025.11.29 @ 23:15:17 Sessions 21 Manual Loads 0 Difficulty Rogue Special Mode None Game No. 29 Rogue 29 Adventurer 0 Explorer 0 Win Type - Total 0 Types 0/0/0/0/0/0/0/0/0/0 Lore% 42 Gallery% 38 Achievement% 35 Wizard Run 0 Options --------- Layout 1 ASCII 0 Keyboard 0 Movement Numpad Keybinds 0 Fullscreen 2 Font 24/Smallcaps Map View 50x35 Zoom Use 0% Tactical HUD 1 Map Filters NONE Filters NONE Steam 1 RUN: 8a8c5aa5-59ea-433e-ae2c-bb9115ad816f